bitfinex/quotes_BTCUSD_20240718
["timestamp","ask_amount","ask_price","bid_price","bid_amount"]
[1721317486274,0.1469,63957.0,63956.0,0.07114917]
[1721317486514,0.236255,63957.0,63956.0,0.05814917]
[1721317486747,0.236255,63957.0,63956.0,0.06414917]
[1721317486977,0.312694,63961.0,63960.0,0.04898617]
[1721317486978,0.156345,63961.0,63960.0,0.04898617]
[1721317487215,0.156348,63960.0,63958.0,0.04898617]
[1721317487472,0.156347,63960.0,63959.0,0.04898617]
[1721317487930,0.0312694,63961.0,63960.0,0.04898617]
[1721317488165,0.0312694,63961.0,63960.0,0.04998617]
[1721317488589,0.156345,63961.0,63960.0,0.04998617]
[1721317488811,0.156345,63961.0,63960.0,0.001]
[1721317489034,0.93610674,63961.0,63960.0,0.001]
[1721317489254,0.93610674,63961.0,63960.0,0.004]
[1721317489473,0.93610674,63961.0,63960.0,0.003]
[1721317489701,1.07550571,63961.0,63960.0,0.003]
[1721317490152,1.38819571,63961.0,63960.0,0.003]
[1721317490372,1.5682621,63961.0,63960.0,0.003]
[1721317490594,1.09544583,63960.0,63959.0,0.002]
[1721317490813,1.60724353,63960.0,63959.0,0.002]
[1721317491072,1.6062297,63960.0,63959.0,0.002]
[1721317491300,1.6062297,63960.0,63956.0,0.009163]
[1721317491301,1.09549883,63957.0,63956.0,0.009163]
[1721317491532,1.76895696,63957.0,63956.0,0.009163]
[1721317491752,1.9222927,63957.0,63956.0,0.009163]
[1721317492871,1.92204648,63957.0,63956.0,0.009163]
[1721317493540,1.92306031,63957.0,63956.0,0.009163]
[1721317493756,2.08786031,63957.0,63956.0,0.010163]
[1721317493985,2.08786031,63957.0,63956.0,0.011163]
[1721317493986,2.15168519,63957.0,63956.0,0.011163]
[1721317494927,2.15067136,63957.0,63956.0,0.011163]
[1721317495144,1.83796136,63957.0,63956.0,0.011163]
[1721317495368,1.79013648,63957.0,63956.0,0.011163]
[1721317496556,1.78924216,63957.0,63956.0,0.011163]
[1721317498331,2.10296599,63957.0,63956.0,0.011163]
[1721317498548,2.20296599,63957.0,63956.0,0.011163]
[1721317499210,2.16754014,63957.0,63956.0,0.011163]
[1721317499432,2.20288863,63957.0,63956.0,0.011163]
[1721317499655,2.25071351,63957.0,63956.0,0.011163]
[1721317499873,2.29726024,63957.0,63956.0,0.011163]
[1721317500109,2.32053361,63957.0,63956.0,0.011163]
[1721317500375,2.63324361,63957.0,63956.0,0.011163]
[1721317500595,2.56342351,63957.0,63956.0,0.011163]
[1721317500831,2.65651697,63957.0,63956.0,0.011163]
[1721317501062,2.00687056,63957.0,63956.0,0.011163]
[1721317501297,1.54701523,63957.0,63956.0,0.011163]
[1721317501783,1.54718826,63957.0,63956.0,0.011163]
[1721317502011,1.23447826,63957.0,63956.0,0.011163]
[1721317502247,0.016,63957.0,63956.0,0.011163]
[1721317502526,0.016,63957.0,63956.0,0.8268767]
[1721317502766,0.016,63957.0,63956.0,1.582153]
[1721317503004,0.016,63957.0,63956.0,1.762253]
[1721317504028,0.016,63957.0,63956.0,2.074967]
[1721317504263,0.016,63957.0,63956.0,1.762253]
[1721317504738,0.016,63957.0,63956.0,1.761253]
[1721317504739,0.009,63957.0,63956.0,1.761253]
[1721317504982,0.00083,63964.0,63963.0,0.51800617]
[1721317505693,0.00083,63964.0,63963.0,0.90786096]
[1721317506411,0.469842,63964.0,63963.0,0.003]
[1721317506639,0.00083,63964.0,63963.0,0.20832617]
[1721317507097,0.00083,63964.0,63963.0,0.003]
[1721317507322,0.469842,63964.0,63963.0,0.003]
[1721317507549,0.5480927,63964.0,63963.0,0.003]
[1721317507824,0.3917557,63964.0,63959.0,0.04898617]
[1721317508062,0.3917557,63964.0,63960.0,0.002794]
[1721317508307,0.156341,63963.0,63959.0,0.04898617]
[1721317508539,0.156341,63963.0,63960.0,0.002794]
[1721317508789,0.00083,63964.0,63963.0,0.04898617]
[1721317509012,0.00083,63964.0,63963.0,0.51800617]
[1721317509456,0.00083,63964.0,63963.0,0.89488617]
[1721317509677,0.00083,63964.0,63963.0,0.89688617]
[1721317509909,0.00083,63964.0,63963.0,0.97828617]
[1721317510566,0.157167,63964.0,63963.0,0.002]
[1721317510784,0.0619928,63964.0,63963.0,0.002]
[1721317511011,0.00083,63964.0,63963.0,0.05098617]
[1721317511223,0.00083,63964.0,63963.0,0.83268617]
[1721317511446,0.00083,63964.0,63963.0,0.83068617]
[1721317511939,0.00083,63964.0,63963.0,0.52300617]
[1721317512159,0.157167,63964.0,63963.0,0.005]
[1721317512382,0.2041498,63964.0,63963.0,0.005]
[1721317512598,0.5168248,63964.0,63963.0,0.005]
[1721317512817,0.5168248,63964.0,63963.0,0.007]
[1721317512818,0.6609248,63964.0,63963.0,0.007]
[1721317513046,0.2041498,63964.0,63963.0,0.05598617]
[1721317513293,0.0478128,63964.0,63963.0,0.05598617]
[1721317513517,0.00083,63964.0,63963.0,0.05698617]
[1721317513739,0.00083,63964.0,63963.0,0.04998617]
[1721317514648,0.00083,63964.0,63963.0,0.83168617]
[1721317514875,0.00083,63964.0,63963.0,1.14436617]
[1721317515327,0.00083,63964.0,63963.0,0.83168617]
[1721317515826,0.00083,63964.0,63963.0,1.29774791]
[1721317516055,0.00083,63977.0,63976.0,0.51791117]
[1721317516284,0.00083,63977.0,63976.0,1.5134017]
[1721317517901,0.00083,63977.0,63976.0,1.5634017]
[1721317518118,0.00083,63977.0,63976.0,1.8760187]
[1721317518337,0.00083,63977.0,63976.0,2.00580056]
[1721317518582,0.00083,63977.0,63976.0,2.05580056]
[1721317518805,0.00083,63977.0,63976.0,1.53622691]
[1721317519261,0.00183,63977.0,63976.0,1.54922691]
[1721317519745,0.00183,63977.0,63976.0,1.08222817]
[1721317519978,0.00183,63977.0,63976.0,0.67961117]
[1721317520204,0.00183,63977.0,63976.0,0.07198617]
[1721317520451,0.00183,63977.0,63976.0,0.013]
[1721317520933,0.00183,63977.0,63976.0,0.06198617]
[1721317521181,0.00183,63977.0,63976.0,0.07198617]
[1721317521628,0.00183,63977.0,63976.0,0.023]
[1721317521867,0.5634907,63977.0,63976.0,0.013]
[1721317522090,0.609948,63977.0,63976.0,0.013]
[1721317523052,0.452642,63977.0,63972.0,0.04898617]
[1721317523299,0.156311,63975.0,63972.0,0.04898617]
[1721317523513,0.0765244,63976.0,63974.0,0.04898617]
[1721317523514,0.2328334,63976.0,63974.0,0.04898617]
[1721317523737,0.156309,63976.0,63975.0,0.04898617]
[1721317523959,0.452642,63977.0,63976.0,0.04898617]
[1721317523960,0.07873,63977.0,63976.0,0.04898617]
[1721317524177,0.00083,63977.0,63976.0,0.51791117]
[1721317524401,0.00083,63977.0,63976.0,0.83052817]
[1721317524840,0.00183,63977.0,63976.0,0.84452817]
[1721317525077,0.00183,63977.0,63976.0,1.15714517]
[1721317525289,0.00183,63977.0,63976.0,1.31152691]
[1721317525767,0.00383,63977.0,63976.0,0.84452817]
[1721317526006,0.00383,63977.0,63976.0,0.53191117]
[1721317526222,0.00383,63977.0,63976.0,0.06298617]
[1721317526457,0.0280225,63977.0,63976.0,0.014]
[1721317526683,0.472748,63977.0,63976.0,0.014]
[1721317526917,1.25235374,63977.0,63976.0,0.014]
[1721317527212,1.27535374,63977.0,63976.0,0.014]
[1721317527435,1.27335374,63977.0,63976.0,0.014]
[1721317527687,1.90612914,63977.0,63976.0,0.014]
[1721317527939,2.05172914,63977.0,63976.0,0.019]
[1721317528189,2.05071531,63977.0,63976.0,0.019]
[1721317528421,2.05071531,63977.0,63976.0,0.014]
[1721317528681,2.15172914,63977.0,63976.0,0.014]
[1721317528916,0.1485,63968.0,63956.0,0.009163]
[1721317529160,0.156352,63958.0,63957.0,0.002794]
[1721317529390,0.156352,63958.0,63956.0,0.05814917]
[1721317529666,0.17738174,63967.0,63961.0,0.04898617]
[1721317529667,0.312671,63965.0,63961.0,0.04898617]
[1721317529943,0.04316474,63974.0,63973.0,0.04898617]
[1721317530220,0.00683,63977.0,63976.0,0.59508596]
[1721317530430,0.00983,63977.0,63976.0,0.97060296]
[1721317530700,0.00983,63977.0,63976.0,1.28321996]
[1721317531417,0.01583,63977.0,63976.0,1.28421996]
[1721317531643,0.01583,63977.0,63976.0,0.89442817]
[1721317531878,0.01583,63977.0,63976.0,0.90042817]
[1721317532370,0.00983,63977.0,63976.0,0.89342817]
[1721317532612,0.00983,63977.0,63976.0,1.20604517]
[1721317533124,0.00983,63977.0,63976.0,0.89342817]
[1721317533625,0.00983,63977.0,63976.0,0.007]
[1721317533860,0.0420732,63977.0,63976.0,0.007]
[1721317534113,0.0420732,63977.0,63971.0,0.04898617]
[1721317534114,0.156314,63974.0,63971.0,0.04898617]
[1721317534383,0.15438174,63974.0,63968.0,0.04898617]
[1721317534637,0.156323,63970.0,63966.0,0.04898617]
[1721317535096,0.21866017,63969.0,63965.0,0.04898617]
[1721317535097,0.21866017,63969.0,63958.0,0.002794]
[1721317535098,0.06233417,63969.0,63964.0,0.04898617]
[1721317535379,0.46701374,63973.0,63966.0,0.002794]
[1721317535380,0.77964574,63973.0,63966.0,0.002794]
[1721317535636,0.156321,63971.0,63968.0,0.04898617]
[1721317535866,0.15438174,63971.0,63970.0,0.04898617]
[1721317536100,0.336444,63977.0,63976.0,0.04898617]
[1721317536101,0.00083,63977.0,63976.0,0.04898617]
[1721317537771,0.00083,63977.0,63976.0,0.20529417]
[1721317538239,0.00083,63977.0,63973.0,0.312631]
[1721317538240,0.00083,63977.0,63974.0,0.04898617]
[1721317538468,0.0165427,63977.0,63976.0,0.04898617]
[1721317538690,0.0165427,63977.0,63972.0,0.04898617]
[1721317538916,0.0165427,63977.0,63970.0,0.04898617]
[1721317538917,0.156314,63974.0,63970.0,0.04898617]
[1721317539142,0.156314,63974.0,63968.0,0.04898617]
[1721317539143,0.156316,63973.0,63968.0,0.04898617]
[1721317539391,0.156319,63972.0,63969.0,0.002794]
[1721317539617,0.468991,63967.0,63966.0,0.001]
[1721317539866,0.99856474,63967.0,63966.0,0.001]
[1721317540141,1.64052574,63967.0,63966.0,0.001]
[1721317540606,1.74052574,63967.0,63966.0,0.001]
[1721317540840,1.77313551,63967.0,63966.0,0.001]
[1721317541780,0.781775,63957.0,63953.0,0.009163]
[1721317542016,1.10685674,63957.0,63953.0,0.009163]
[1721317542250,1.55328427,63957.0,63953.0,0.009163]
[1721317542481,1.51956674,63957.0,63953.0,0.009163]
[1721317542777,1.99809057,63957.0,63953.0,0.009163]
[1721317543003,2.18609493,63957.0,63953.0,0.009163]
[1721317543235,2.15244014,63957.0,63953.0,0.009163]
[1721317543460,2.18711117,63957.0,63953.0,0.009163]
[1721317543690,2.18609734,63957.0,63953.0,0.009163]
[1721317543920,2.18637314,63957.0,63953.0,0.009163]
[1721317544152,2.18535931,63957.0,63953.0,0.009163]
[1721317544394,2.19335931,63957.0,63956.0,0.010163]
[1721317544621,2.16044014,63957.0,63956.0,0.010163]
[1721317544855,2.15142631,63957.0,63956.0,0.009163]
[1721317545082,2.16044014,63957.0,63956.0,0.010163]
[1721317545308,2.15942631,63957.0,63956.0,0.010163]
[1721317545771,2.15942631,63957.0,63956.0,0.009163]
[1721317545772,2.15142631,63957.0,63956.0,0.009163]
[1721317546226,2.17642631,63957.0,63956.0,0.010163]
[1721317546804,1.03649631,63957.0,63956.0,0.010163]
[1721317547487,1.34920631,63957.0,63956.0,0.010163]
[1721317547717,1.66191631,63957.0,63956.0,0.010163]
[1721317547967,1.67591631,63957.0,63956.0,0.010163]
[1721317548206,1.69891631,63957.0,63956.0,0.010163]
[1721317548948,1.38620631,63957.0,63956.0,0.010163]
[1721317549190,0.63778631,63957.0,63956.0,0.010163]
[1721317549471,0.95049631,63957.0,63956.0,0.010163]
[1721317549693,1.10885674,63957.0,63956.0,0.010163]
[1721317551469,0.79614674,63957.0,63956.0,0.05914917]
[1721317551703,0.17938174,63957.0,63956.0,0.05914917]
[1721317552392,0.24422461,63957.0,63956.0,0.05914917]
[1721317552611,0.40057961,63957.0,63956.0,0.05914917]
[1721317553339,0.38957961,63957.0,63956.0,0.05814917]
[1721317553559,0.24122461,63957.0,63956.0,0.05914917]
[1721317554487,0.22722461,63957.0,63956.0,0.05914917]
[1721317554701,0.21922461,63957.0,63956.0,0.05814917]
[1721317554927,0.38857961,63957.0,63956.0,0.010163]
[1721317555158,0.70828961,63957.0,63956.0,0.011163]
[1721317555386,1.66842344,63957.0,63956.0,0.011163]
[1721317555624,1.76740961,63957.0,63956.0,0.011163]
[1721317555862,2.05760961,63957.0,63956.0,0.012163]
[1721317556087,0.88518961,63957.0,63956.0,0.012163]
[1721317556308,0.26388174,63957.0,63956.0,0.06114917]
[1721317556533,0.028,63957.0,63956.0,0.06114917]
[1721317556754,0.028,63957.0,63956.0,0.21750617]
[1721317556980,0.028,63957.0,63956.0,0.53022017]
[1721317557199,0.028,63957.0,63956.0,0.84293417]
[1721317557415,0.028,63957.0,63956.0,1.15564817]
[1721317557634,0.028,63957.0,63956.0,0.84293417]
[1721317557853,0.028,63957.0,63956.0,0.21750617]
[1721317558096,0.021,63957.0,63956.0,0.21650617]
[1721317558316,0.15634,63963.0,63959.0,0.04898617]
[1721317558539,0.2345108,63962.0,63960.0,0.002794]
[1721317558768,0.2345108,63962.0,63956.0,0.011163]
[1721317558769,0.156355,63957.0,63956.0,0.011163]
[1721317558996,0.156355,63957.0,63956.0,0.012163]
[1721317559219,0.07245955,63957.0,63956.0,0.06114917]
[1721317559477,0.156347,63960.0,63959.0,0.04898617]
[1721317562270,1.36176674,63957.0,63956.0,0.010163]
[1721317562699,1.50911631,63957.0,63956.0,0.009163]
[1721317563631,1.57271631,63957.0,63956.0,0.009163]
[1721317564824,1.57271631,63957.0,63956.0,0.010163]
[1721317564825,2.05622631,63957.0,63956.0,0.010163]
[1721317565052,2.1925058,63957.0,63956.0,0.010163]
[1721317565281,2.1865058,63957.0,63956.0,0.009163]
[1721317565883,2.19149197,63957.0,63956.0,0.010163]
[1721317565985,2.1865058,63957.0,63956.0,0.009163]
[1721317566458,2.1925058,63957.0,63956.0,0.010163]
[1721317566913,2.19239841,63957.0,63956.0,0.010163]
[1721317567141,2.19138458,63957.0,63956.0,0.010163]
[1721317567646,2.19239841,63957.0,63956.0,0.011163]
[1721317567875,2.18538458,63957.0,63956.0,0.010163]
[1721317568101,2.19339841,63957.0,63956.0,0.010163]
[1721317568633,2.19939841,63957.0,63956.0,0.011163]
[1721317568871,2.51210841,63957.0,63956.0,0.011163]
[1721317569599,2.20539841,63957.0,63956.0,0.012163]
[1721317569863,2.17024014,63957.0,63956.0,0.012163]
[1721317570093,2.20525628,63957.0,63956.0,0.012163]
[1721317570322,2.20513391,63957.0,63956.0,0.012163]
[1721317570796,1.60361008,63957.0,63956.0,0.012163]
[1721317571028,1.60361008,63957.0,63956.0,0.011163]
[1721317571029,1.57071631,63957.0,63956.0,0.011163]
[1721317571729,1.54971631,63957.0,63956.0,0.009163]
[1721317571967,1.55571631,63957.0,63956.0,0.010163]
[1721317572245,1.57871631,63957.0,63956.0,0.010163]
[1721317572497,1.67871631,63957.0,63956.0,0.010163]
[1721317572740,1.72702909,63957.0,63956.0,0.011163]
[1721317572999,1.7270343,63957.0,63956.0,0.011163]
[1721317573242,1.7210343,63957.0,63956.0,0.010163]
[1721317574570,0.8491143,63957.0,63956.0,0.010163]
[1721317574814,0.81479631,63957.0,63956.0,0.010163]
[1721317575057,1.14550631,63957.0,63956.0,0.012163]
[1721317575523,1.11350631,63957.0,63956.0,0.009163]
[1721317575764,1.42621631,63957.0,63956.0,0.009163]
[1721317575989,1.46521116,63957.0,63956.0,0.010163]
[1721317576224,1.63102499,63957.0,63956.0,0.010163]
[1721317576474,1.63102499,63957.0,63956.0,0.009163]
[1721317576475,1.99702499,63957.0,63956.0,0.009163]
[1721317576706,2.10102499,63957.0,63956.0,0.010163]
[1721317577166,2.41373499,63957.0,63956.0,0.010163]
[1721317577647,2.41373499,63957.0,63953.0,0.009163]
[1721317577648,1.63967183,63954.0,63953.0,0.009163]
[1721317577896,2.02964842,63954.0,63953.0,0.009163]
[1721317578593,2.31194842,63954.0,63953.0,0.009163]
[1721317579311,2.31146457,63954.0,63953.0,0.009163]
[1721317579777,2.31645876,63954.0,63953.0,0.010163]
[1721317579997,2.47080833,63954.0,63953.0,0.010163]
[1721317580692,2.18850833,63954.0,63953.0,0.010163]
[1721317580917,2.18850833,63954.0,63953.0,0.011163]
[1721317580918,2.20250833,63954.0,63953.0,0.011163]
[1721317581192,2.16800314,63954.0,63953.0,0.011163]
[1721317581451,2.24935878,63954.0,63953.0,0.011163]
[1721317581938,2.20266219,63954.0,63953.0,0.011163]
[1721317582402,2.16800314,63954.0,63953.0,0.011163]
[1721317582633,2.24915614,63954.0,63953.0,0.011163]
[1721317582865,1.72392504,63954.0,63953.0,0.011163]
[1721317583519,0.95519174,63954.0,63953.0,0.011163]
[1721317583770,0.64246774,63954.0,63953.0,0.011163]
[1721317584056,0.95519174,63954.0,63953.0,0.011163]
[1721317584491,1.26791574,63954.0,63953.0,0.011163]
[1721317584756,1.36895888,63954.0,63953.0,0.011163]
[1721317585003,1.84003245,63954.0,63953.0,0.009163]
[1721317585236,1.84003245,63954.0,63953.0,0.011163]
[1721317585237,1.90672572,63954.0,63953.0,0.011163]
[1721317585485,1.51236531,63954.0,63953.0,0.011163]
[1721317585709,1.64086408,63954.0,63953.0,0.010163]
[1721317586172,1.7180673,63954.0,63953.0,0.011163]
[1721317586412,2.0307913,63954.0,63953.0,0.011163]
[1721317586658,2.0447913,63954.0,63953.0,0.012163]
[1721317586907,2.2095913,63954.0,63953.0,0.012163]
[1721317587122,2.20857747,63954.0,63953.0,0.012163]
[1721317587345,2.2095913,63954.0,63953.0,0.012163]
[1721317587839,2.13838808,63954.0,63953.0,0.012163]
[1721317588601,0.69196651,63954.0,63953.0,0.012163]
[1721317588932,0.69212569,63954.0,63953.0,0.012163]
[1721317589128,0.34474374,63954.0,63953.0,0.06114917]
[1721317589623,0.34474374,63954.0,63953.0,0.05914917]
[1721317589624,0.31674374,63954.0,63953.0,0.05914917]
[1721317589869,0.68649751,63954.0,63953.0,0.05814917]
[1721317590113,0.62346774,63954.0,63953.0,0.05814917]
[1721317590586,0.16038174,63954.0,63953.0,0.05914917]
[1721317590843,0.31674374,63954.0,63953.0,0.05914917]
[1721317591102,0.38451662,63954.0,63953.0,0.009163]
[1721317591354,0.22815462,63954.0,63953.0,0.05814917]
[1721317591597,0.15438174,63954.0,63953.0,0.05814917]
[1721317592072,0.00083,63957.0,63956.0,0.89707117]
[1721317592318,0.00083,63957.0,63956.0,1.28695996]
[1721317593023,0.00083,63957.0,63956.0,0.97424596]
[1721317593286,0.00083,63957.0,63956.0,0.11528617]
[1721317593747,0.0165475,63957.0,63956.0,0.11528617]
[1721317593992,0.156357,63956.0,63954.0,0.04898617]
[1721317594288,0.15521174,63957.0,63953.0,0.009163]
[1721317594289,0.469086,63954.0,63953.0,0.009163]
[1721317594550,1.02989181,63954.0,63953.0,0.009163]
[1721317594796,1.05289181,63954.0,63953.0,0.009163]
[1721317595065,1.44521581,63954.0,63953.0,0.009163]
[1721317595300,2.14151098,63954.0,63953.0,0.009163]
[1721317595547,2.0246016,63954.0,63953.0,0.009163]
[1721317595777,2.1246016,63954.0,63953.0,0.009163]
[1721317597725,1.57331483,63943.0,63942.0,0.009163]
[1721317597975,1.90731882,63943.0,63942.0,0.009163]
[1721317598207,1.99579657,63943.0,63942.0,0.009163]
[1721317598469,2.18467347,63943.0,63942.0,0.009163]
[1721317600147,2.19867347,63943.0,63942.0,0.010163]
[1721317600394,1.72245983,63941.0,63940.0,0.009163]
[1721317600626,2.10402594,63941.0,63940.0,0.009163]
[1721317600853,2.22839679,63941.0,63940.0,0.009163]
[1721317601575,2.18751344,63941.0,63940.0,0.009163]
[1721317603914,2.18746206,63941.0,63940.0,0.009163]
[1721317604344,2.25705268,63941.0,63940.0,0.009163]
[1721317604622,2.50025006,63941.0,63940.0,0.009163]
[1721317604845,2.51425006,63941.0,63940.0,0.010163]
[1721317605079,2.51825006,63941.0,63940.0,0.011163]
[1721317605309,1.71554283,63928.0,63927.0,0.009163]
[1721317605541,1.92518166,63928.0,63927.0,0.009163]
[1721317606057,1.92619549,63928.0,63927.0,0.009163]
[1721317606303,1.92518166,63928.0,63927.0,0.009163]
[1721317607088,1.89191074,63928.0,63927.0,0.009163]
[1721317607339,1.42670931,63928.0,63927.0,0.009163]
[1721317607575,1.59660931,63928.0,63927.0,0.010163]
[1721317607797,1.69762314,63928.0,63927.0,0.010163]
[1721317608044,1.73002952,63928.0,63927.0,0.010163]
[1721317608276,2.0438946,63928.0,63927.0,0.010163]
[1721317608710,2.0438946,63928.0,63927.0,0.011163]
[1721317608711,2.0578946,63928.0,63927.0,0.011163]
[1721317609166,2.05688077,63928.0,63927.0,0.011163]
[1721317609414,2.1952946,63928.0,63927.0,0.011163]
[1721317609644,2.16187414,63928.0,63927.0,0.011163]
[1721317609868,2.1953643,63928.0,63927.0,0.011163]
[1721317610092,2.16187414,63928.0,63927.0,0.011163]
[1721317610311,2.47472514,63928.0,63927.0,0.011163]
[1721317610530,2.55113611,63928.0,63927.0,0.011163]
[1721317610755,2.23727128,63928.0,63927.0,0.011163]
[1721317611026,2.20394425,63928.0,63927.0,0.011163]
[1721317611460,2.16159387,63928.0,63927.0,0.011163]
[1721317611936,2.20495808,63928.0,63927.0,0.011163]
[1721317612585,2.16159387,63928.0,63927.0,0.011163]
[1721317613044,1.71032904,63928.0,63927.0,0.150863]
[1721317613270,1.71032904,63928.0,63927.0,0.072863]
[1721317613271,1.05522847,63928.0,63927.0,0.072863]
[1721317613484,1.05522847,63928.0,63927.0,0.011163]
[1721317613485,1.53297947,63928.0,63927.0,0.011163]
[1721317613702,1.20957804,63928.0,63927.0,0.011163]
[1721317613918,1.52242904,63928.0,63927.0,0.011163]
[1721317614356,1.20957804,63928.0,63927.0,0.011163]
[1721317615062,1.10957804,63928.0,63927.0,0.011163]
[1721317616142,1.13257804,63928.0,63927.0,0.011163]
[1721317616362,1.85694287,63928.0,63927.0,0.011163]
[1721317616861,2.16979387,63928.0,63927.0,0.011163]
[1721317617315,2.20361245,63928.0,63927.0,0.011163]
[1721317617537,2.20361379,63928.0,63927.0,0.011163]
[1721317617754,2.16979387,63928.0,63927.0,0.011163]
[1721317618198,2.21445636,63928.0,63927.0,0.011163]
[1721317618892,1.71032904,63928.0,63927.0,0.011163]
[1721317620988,2.21134287,63928.0,63927.0,0.011163]
[1721317621488,2.52419387,63928.0,63927.0,0.011163]
[1721317621737,2.55888624,63928.0,63927.0,0.011163]
[1721317621993,2.05787241,63928.0,63927.0,0.011163]
[1721317622465,2.05787166,63928.0,63927.0,0.011163]
[1721317623182,2.05888549,63928.0,63927.0,0.011163]
[1721317623398,2.05787166,63928.0,63927.0,0.011163]
[1721317624551,1.55712066,63928.0,63927.0,0.011163]
[1721317624797,1.52242904,63928.0,63927.0,0.011163]
[1721317625705,1.55691279,63928.0,63927.0,0.011163]
[1721317626175,2.02419387,63928.0,63927.0,0.011163]
[1721317626407,2.19747653,63928.0,63927.0,0.011163]
[1721317626637,2.1964627,63928.0,63927.0,0.011163]
[1721317626857,2.19770763,63928.0,63927.0,0.011163]
[1721317627334,2.26857621,63928.0,63927.0,0.011163]
[1721317628027,2.58142721,63928.0,63927.0,0.011163]
[1721317628929,2.58106201,63928.0,63927.0,0.011163]
[1721317629584,2.31388733,63928.0,63927.0,0.011163]
[1721317630077,0.12421714,63928.0,63927.0,0.011163]
[1721317630301,0.67717857,63928.0,63927.0,0.08833779]
[1721317630518,0.99018882,63928.0,63927.0,0.08833779]
[1721317630743,0.64265774,63928.0,63927.0,0.08833779]
[1721317631239,0.95550874,63928.0,63927.0,0.08833779]
[1721317631489,0.76949261,63928.0,63927.0,0.08833779]
[1721317632163,0.76949261,63928.0,63927.0,0.011163]
[1721317632407,1.11643071,63928.0,63927.0,0.011163]
[1721317632677,1.69418171,63928.0,63927.0,0.011163]
[1721317633169,1.71718171,63928.0,63927.0,0.011163]
[1721317633624,1.71819554,63928.0,63927.0,0.011163]
[1721317633844,1.78853888,63928.0,63927.0,0.011163]
[1721317634091,2.03003271,63928.0,63927.0,0.011163]
[1721317634332,2.03104654,63928.0,63927.0,0.011163]
[1721317635058,2.10123603,63928.0,63927.0,0.011163]
[1721317635289,2.02997113,63928.0,63927.0,0.011163]
[1721317635531,1.71712372,63928.0,63927.0,0.011163]
[1721317635989,2.02997472,63928.0,63927.0,0.011163]
[1721317637406,1.52922372,63928.0,63927.0,0.011163]
[1721317637658,1.21637272,63928.0,63927.0,0.011163]
[1721317637944,1.21637272,63928.0,63927.0,0.073863]
[1721317638128,1.21650445,63928.0,63927.0,0.073863]
[1721317638357,1.21650445,63928.0,63927.0,0.011163]
[1721317639095,1.23950445,63928.0,63927.0,0.011163]
[1721317640042,1.55235545,63928.0,63927.0,0.011163]
[1721317640522,1.55216782,63928.0,63927.0,0.011163]
[1721317640783,1.76466804,63928.0,63927.0,0.011163]
[1721317641022,2.03093265,63928.0,63927.0,0.011163]
[1721317641241,2.03067368,63928.0,63927.0,0.011163]
[1721317641470,2.03168752,63928.0,63927.0,0.011163]
[1721317641944,2.14847381,63928.0,63927.0,0.011163]
[1721317642171,2.1030908,63928.0,63927.0,0.011163]
[1721317642397,2.6030908,63928.0,63927.0,0.011163]
[1721317643639,2.74323435,63928.0,63927.0,0.011163]
[1721317643856,2.72662857,63928.0,63927.0,0.011163]
[1721317644395,2.58648502,63928.0,63927.0,0.011163]
[1721317644617,2.72751181,63928.0,63927.0,0.011163]
[1721317644852,2.48016603,63928.0,63927.0,0.011163]
[1721317645086,3.04065577,63928.0,63927.0,0.011163]
[1721317645586,2.90031873,63928.0,63927.0,0.011163]
[1721317646280,1.40372683,63926.0,63925.0,1e-06]
[1721317646509,1.66541027,63926.0,63925.0,1e-06]
[1721317646733,1.76541027,63926.0,63925.0,1e-06]
[1721317646967,2.72699327,63926.0,63925.0,1e-06]
[1721317647214,2.57194397,63926.0,63925.0,1e-06]
[1721317647475,2.56848184,63926.0,63925.0,1e-06]
[1721317647712,2.88742677,63926.0,63925.0,1e-06]
[1721317647927,2.73239596,63926.0,63925.0,1e-06]
[1721317648402,2.57456577,63926.0,63925.0,1e-06]
[1721317648628,3.28742677,63926.0,63925.0,1e-06]
[1721317649763,3.32444743,63926.0,63925.0,1e-06]
[1721317650123,3.48918159,63926.0,63925.0,0.001001]
[1721317650404,3.17632059,63926.0,63925.0,0.001001]
[1721317650621,3.01858643,63926.0,63925.0,0.001001]
[1721317650826,3.01885488,63926.0,63925.0,0.001001]
[1721317653479,2.98183422,63926.0,63925.0,0.001914]
[1721317653697,2.98183422,63926.0,63909.0,0.009163]
[1721317653698,2.52897,63910.0,63909.0,0.009163]
[1721317653910,2.78335174,63910.0,63909.0,0.009163]
[1721317654146,1.760344,63901.0,63899.0,0.009163]
[1721317654360,2.72391114,63901.0,63899.0,0.009163]
[1721317654579,2.93060804,63901.0,63899.0,0.009163]
[1721317655291,3.06970804,63901.0,63900.0,1e-06]
[1721317655499,0.321399,63898.0,63897.0,0.009174]
[1721317655750,1.84696845,63898.0,63897.0,0.009174]
[1721317655959,2.20258006,63898.0,63897.0,0.009174]
[1721317656175,2.14526982,63898.0,63897.0,0.009174]
[1721317656394,0.321411,63893.0,63892.0,1e-06]
[1721317656612,1.49217823,63893.0,63892.0,1e-06]
[1721317656826,2.43124723,63893.0,63892.0,1e-06]
[1721317657081,2.84705254,63893.0,63892.0,1e-06]
[1721317657298,2.80443893,63893.0,63892.0,1e-06]
[1721317657940,2.94408932,63893.0,63892.0,1e-06]
[1721317658157,2.86993893,63893.0,63892.0,1e-06]
[1721317659265,2.89336751,63893.0,63892.0,1e-06]
[1721317659510,2.81977201,63893.0,63892.0,1e-06]
[1721317659730,2.83377201,63893.0,63892.0,1e-06]
[1721317659947,2.83290354,63893.0,63892.0,1e-06]
[1721317660162,2.90259798,63893.0,63892.0,1e-06]
[1721317660391,2.85998437,63893.0,63892.0,1e-06]
[1721317660874,2.84598437,63893.0,63892.0,1e-06]
[1721317661324,2.82273669,63893.0,63892.0,1e-06]
[1721317661545,2.83673669,63893.0,63892.0,1e-06]
[1721317661790,2.85998437,63893.0,63892.0,1e-06]
[1721317662001,2.95480893,63893.0,63892.0,1e-06]
[1721317662218,4.021055,63893.0,63892.0,1e-06]
[1721317662430,2.528555,63877.0,63876.0,0.009174]
[1721317662652,2.81876695,63877.0,63876.0,0.009174]
[1721317662882,2.36406595,63877.0,63876.0,0.009174]
[1721317663083,2.36412548,63877.0,63876.0,0.009174]
[1721317663313,2.32823574,63877.0,63876.0,0.009174]